[Event "RUS-ch Men Rapid 2019"]
[Site "Sochi"]
[Date "2019.10.15"]
[Round "1.28"]
[White "Ponikarovsky, Alexey"]
[Black "Vastrukhin, Oleg"]
[Result "0-1"]
[ECO "A36"]
[WhiteElo "1962"]
[BlackElo "2512"]
[Annotator "ChessBase"]
[PlyCount "94"]
[EventDate "2019.10.15"]
[EventType "swiss"]
[EventCountry "RUS"]
[SourceTitle "playchess.com"]
[Source "ChessBase"]
[SourceQuality "1"]
[TimeControl "900+10"]

1. c4 {[%emt 0:00:29]} g6 {[%emt 0:00:00]} 2. Nc3 {[%emt 0:00:02]} Bg7 {[%emt 0:00:00]} 3. g3 {[%emt 0:00:01]} c5 {[%emt 0:00:00]} 4. Bg2 {[%emt 0:00:06]} Nc6 {[%emt 0:00:00]} 5. e4 {[%emt 0:00:40]} e6 {[%emt 0:00:01]} 6. Nge2 {[%emt 0:00:02]} Nge7 {[%emt 0:00:02]} 7. f4 {[%emt 0:01:12]} O-O {[%emt 0:00:18]} 8. O-O {[%emt 0:00:12]} a6 {[%emt 0:00:23]} 9. d3 {[%emt 0:00:52]} d6 {[%emt 0:00:03]} 10. Be3 {[%emt 0:00:09]} Nd4 {[%emt 0:00:04]} 11. Bf2 {[%emt 0:00:11]} Nec6 {[%emt 0:00:26]} 12. Nxd4 {[%emt 0:00:17]} Bxd4 {[%emt 0:01:46]} 13. Bxd4 {[%emt 0:00:43]} cxd4 {[%emt 0:00:05]} 14. Ne2 {[%emt 0:00:06]} e5 {[%emt 0:00:03]} 15. h3 {[%emt 0:01:18]} Kg7 {[%emt 0:00:26]} 16. Kh2 {[%emt 0:00:03]} h5 {[%emt 0:00:37]} 17. f5 {[%emt 0:00:20]} Qg5 {[%emt 0:00:20]} 18. h4 {[%emt 0:00:37]} Qh6 {[%emt 0:00:04]} 19. f6+ {[%emt 0:01:39]} Kh7 {[%emt 0:00:03]} 20. Ng1 {[%emt 0:00:01]} Rg8 {[%emt 0:01:30]} 21. Bh3 {[%emt 0:01:14]} g5 {[%emt 0:00:05]} 22. Bxc8 {[%emt 0:00:09]} Raxc8 {[%emt 0:00:01]} 23. Nh3 {[%emt 0:00:10]} gxh4 {[%emt 0:01:30]} 24. gxh4 {[%emt 0:00:04]} Rg4 {[%emt 0:00:01]} 25. Ng5+ {[%emt 0:00:52]} Kg8 {[%emt 0:00:02]} 26. Kh3 {[%emt 0:00:13]} Kf8 {[%emt 0:02:02]} 27. Qf3 {[%emt 0:01:23]} Ke8 {[%emt 0:01:37]} 28. Qf5 {[%emt 0:00:56]} Rc7 {[%emt 0:00:00]} 29. a3 {[%emt 0:00:43]} Nb8 {[%emt 0:01:20]} 30. Rf3 {[%emt 0:00:38]} Nd7 {[%emt 0:00:07]} 31. b4 {[%emt 0:00:54]} Nf8 {[%emt 0:00:01]} 32. Rh1 {[%emt 0:02:53]} Ng6 {[%emt 0:00:12]} 33. Ne6 {[%emt 0:00:06]} Rd7 {[%emt 0:02:20]} 34. Ng7+ {[%emt 0:00:12]} Kd8 {[%emt 0:00:01]} 35. Nxh5 {[%emt 0:00:44]} Rxh4+ {[%emt 0:00:10]} 36. Kg2 {[%emt 0:00:03]} Qd2+ {[%emt 0:01:12]} 37. Rf2 {[%emt 0:00:10]} Qxd3 {[%emt 0:00:02]} 38. Qxg6 {[%emt 0:00:27]} fxg6 {[%emt 0:00:03]} 39. Rxh4 {[%emt 0:00:04]} Qxc4 {[%emt 0:01:27]} 40. Ng7 {[%emt 0:00:11]} d3 {[%emt 0:00:03]} 41. Rh8+ {[%emt 0:00:04]} Kc7 {[%emt 0:00:00]} 42. Ne8+ {[%emt 0:00:03]} Kb6 {[%emt 0:00:01]} 43. Nxd6 {[%emt 0:00:09]} Rxd6 {[%emt 0:00:23]} 44. f7 {[%emt 0:00:02]} Qxe4+ {[%emt 0:00:04]} 45. Kg3 {[%emt 0:00:05]} Qe3+ {[%emt 0:00:03]} 46. Kg2 {[%emt 0:00:08]} d2 {[%emt 0:00:20]} 47. f8=Q {[%emt 0:00:15]} d1=Q {[%emt 0:00:02]} 0-1

[Event "RUS-ch Men Rapid 2019"]
[Site "Sochi"]
[Date "2019.10.15"]
[Round "1.30"]
[White "Terzyan, Nazar"]
[Black "Belozerov, Andrei"]
[Result "0-1"]
[ECO "B10"]
[WhiteElo "1946"]
[BlackElo "2506"]
[Annotator "ChessBase"]
[PlyCount "128"]
[EventDate "2019.10.15"]
[EventType "swiss"]
[EventCountry "RUS"]
[SourceTitle "playchess.com"]
[Source "ChessBase"]
[SourceQuality "1"]
[TimeControl "900+10"]

1. e4 {[%emt 0:00:00]} c6 {[%emt 0:00:00]} 2. Nc3 {[%emt 0:00:05]} d5 {[%emt 0:00:00]} 3. g3 {[%emt 0:00:30]} e5 {[%emt 0:00:03]} 4. Bg2 {[%emt 0:00:13]} Nf6 {[%emt 0:00:05]} 5. d3 {[%emt 0:00:25]} Bb4 {[%emt 0:00:06]} 6. Bd2 {[%emt 0:00:33]} O-O {[%emt 0:00:04]} 7. a3 {[%emt 0:04:45]} Ba5 {[%emt 0:00:04]} 8. b4 {[%emt 0:00:47]} Bb6 {[%emt 0:00:32]} 9. Nf3 {[%emt 0:00:27]} Re8 {[%emt 0:00:08]} 10. O-O {[%emt 0:00:35]} Bg4 {[%emt 0:00:18]} 11. h3 {[%emt 0:00:30]} Bh5 {[%emt 0:00:01]} 12. g4 {[%emt 0:02:26]} Bg6 {[%emt 0:00:01]} 13. Re1 {[%emt 0:03:34]} dxe4 {[%emt 0:01:04]} 14. Nxe4 {[%emt 0:00:17]} Nxe4 {[%emt 0:01:09]} 15. dxe4 {[%emt 0:00:03]} Nd7 {[%emt 0:00:02]} 16. Bc3 {[%emt 0:00:06]} Qe7 {[%emt 0:01:02]} 17. Qe2 {[%emt 0:00:06]} Rad8 {[%emt 0:00:10]} 18. Rad1 {[%emt 0:00:06]} f6 {[%emt 0:00:12]} 19. Nh4 {[%emt 0:00:24]} Nf8 {[%emt 0:00:02]} 20. Nf5 {[%emt 0:00:10]} Qc7 {[%emt 0:00:08]} 21. a4 {[%emt 0:00:27]} a5 {[%emt 0:00:34]} 22. Rxd8 {[%emt 0:00:53]} Rxd8 {[%emt 0:00:25]} 23. bxa5 {[%emt 0:00:13]} Bxa5 {[%emt 0:00:09]} 24. Qc4+ {[%emt 0:00:25]} Kh8 {[%emt 0:03:49]} 25. Bxa5 {[%emt 0:00:15]} Qxa5 {[%emt 0:00:02]} 26. Rb1 {[%emt 0:00:05]} Rd7 {[%emt 0:00:20]} 27. Bf3 {[%emt 0:00:50]} Bf7 {[%emt 0:00:28]} 28. Qb4 {[%emt 0:00:03]} Qxb4 {[%emt 0:00:38]} 29. Rxb4 {[%emt 0:00:03]} Ne6 {[%emt 0:00:09]} 30. Be2 {[%emt 0:00:21]} g6 {[%emt 0:00:24]} 31. Ne3 {[%emt 0:00:11]} Nf4 {[%emt 0:00:37]} 32. Bf1 {[%emt 0:00:07]} Kg7 {[%emt 0:01:01]} 33. Kh2 {[%emt 0:00:17]} Be6 {[%emt 0:00:20]} 34. Kg3 {[%emt 0:00:04]} Kf7 {[%emt 0:00:22]} 35. Bc4 {[%emt 0:00:16]} Ke7 {[%emt 0:00:06]} 36. Bxe6 {[%emt 0:00:07]} Nxe6 {[%emt 0:00:03]} 37. a5 {[%emt 0:00:16]} Kd6 {[%emt 0:00:13]} 38. Rb6 {[%emt 0:00:10]} Nc5 {[%emt 0:00:23]} 39. Kf3 {[%emt 0:00:07]} Kc7 {[%emt 0:00:06]} 40. Rb4 {[%emt 0:00:05]} Rd2 {[%emt 0:01:07]} 41. Rc4 {[%emt 0:00:04]} Kd6 {[%emt 0:00:13]} 42. Rb4 {[%emt 0:00:08]} Kc7 {[%emt 0:01:00]} 43. Rc4 {[%emt 0:00:01]} Nd7 {[%emt 0:00:18]} 44. Nd5+ {[%emt 0:00:28]} Kd6 {[%emt 0:00:07]} 45. Nb4 {[%emt 0:00:03]} Nc5 {[%emt 0:00:32]} 46. Ke3 {[%emt 0:00:12]} Rd1 {[%emt 0:00:01]} 47. Nd3 {[%emt 0:00:18]} Nxd3 {[%emt 0:00:16]} 48. cxd3 {[%emt 0:00:02]} Rh1 {[%emt 0:00:02]} 49. a6 {[%emt 0:00:15]} bxa6 {[%emt 0:01:33]} 50. Ra4 {[%emt 0:00:03]} Rxh3+ {[%emt 0:00:06]} 51. f3 {[%emt 0:00:01]} h5 {[%emt 0:01:28]} 52. gxh5 {[%emt 0:00:04]} Rxh5 {[%emt 0:00:01]} 53. Rxa6 {[%emt 0:00:03]} f5 {[%emt 0:00:01]} 54. exf5 {[%emt 0:00:17]} gxf5 {[%emt 0:00:06]} 55. Ra2 {[%emt 0:00:18]} f4+ {[%emt 0:00:40]} 56. Ke4 {[%emt 0:00:11]} Rh1 {[%emt 0:00:01]} 57. Kf5 {[%emt 0:00:31]} Re1 {[%emt 0:01:03]} 58. Rd2 {[%emt 0:00:13]} Kd5 {[%emt 0:00:05]} 59. Ra2 {[%emt 0:00:06]} Re3 {[%emt 0:00:04]} 60. Ra5+ {[%emt 0:00:06]} c5 {[%emt 0:00:01]} 61. Ra8 {[%emt 0:00:01]} Rxd3 {[%emt 0:00:20]} 62. Rd8+ {[%emt 0:00:19]} Kc4 {[%emt 0:00:01]} 63. Re8 {[%emt 0:00:11]} Rxf3 {[%emt 0:00:24]} 64. Rxe5 {[%emt 0:00:04]} Re3 {[%emt 0:00:05]} 0-1

[Event "RUS-ch Men Rapid 2019"]
[Site "Sochi"]
[Date "2019.10.15"]
[Round "1.31"]
[White "Belyakov, Bogdan"]
[Black "Abramov, Ilya"]
[Result "1-0"]
[ECO "B05"]
[WhiteElo "2506"]
[BlackElo "1938"]
[Annotator "ChessBase"]
[PlyCount "75"]
[EventDate "2019.10.15"]
[EventType "swiss"]
[EventCountry "RUS"]
[SourceTitle "playchess.com"]
[Source "ChessBase"]
[SourceQuality "1"]
[TimeControl "900+10"]

1. e4 {[%emt 0:00:00]} Nf6 {[%emt 0:00:00]} 2. e5 {[%emt 0:00:00]} Nd5 {[%emt 0:00:00]} 3. d4 {[%emt 0:00:00]} d6 {[%emt 0:00:00]} 4. Nf3 {[%emt 0:00:00]} Bg4 {[%emt 0:00:03]} 5. Be2 {[%emt 0:00:03]} Nc6 {[%emt 0:00:04]} 6. exd6 {[%emt 0:02:37]} exd6 {[%emt 0:00:09]} 7. O-O {[%emt 0:00:04]} Be7 {[%emt 0:00:04]} 8. h3 {[%emt 0:00:32]} Bh5 {[%emt 0:00:35]} 9. c4 {[%emt 0:00:05]} Nb6 {[%emt 0:00:22]} 10. Nbd2 {[%emt 0:00:28]} O-O {[%emt 0:00:09]} 11. d5 {[%emt 0:00:04]} Nb8 {[%emt 0:00:32]} 12. Bd3 {[%emt 0:01:33]} N8d7 {[%emt 0:00:43]} 13. Qc2 {[%emt 0:00:03]} Bg6 {[%emt 0:00:02]} 14. Bxg6 {[%emt 0:00:02]} hxg6 {[%emt 0:00:02]} 15. Ne4 {[%emt 0:00:03]} Ne5 {[%emt 0:01:31]} 16. Nxe5 {[%emt 0:00:56]} dxe5 {[%emt 0:00:02]} 17. Rd1 {[%emt 0:00:32]} f5 {[%emt 0:02:37]} 18. Nd2 {[%emt 0:01:08]} Nd7 {[%emt 0:00:27]} 19. Nf3 {[%emt 0:00:14]} b6 {[%emt 0:01:58]} 20. a3 {[%emt 0:05:55]} a5 {[%emt 0:01:47]} 21. Bd2 {[%emt 0:00:03]} Bf6 {[%emt 0:00:37]} 22. Bc3 {[%emt 0:00:02]} Re8 {[%emt 0:01:26]} 23. d6 {[%emt 0:00:15]} c5 {[%emt 0:01:04]} 24. Qd2 {[%emt 0:00:58]} e4 {[%emt 0:00:43]} 25. Bxf6 {[%emt 0:01:02]} Qxf6 {[%emt 0:01:41]} 26. Ng5 {[%emt 0:00:11]} Qe5 {[%emt 0:00:50]} 27. g3 {[%emt 0:01:00]} e3 {[%emt 0:00:24]} 28. Qxe3 {[%emt 0:00:04]} Qxe3 {[%emt 0:00:02]} 29. fxe3 {[%emt 0:00:02]} Rxe3 {[%emt 0:00:01]} 30. Kf2 {[%emt 0:00:08]} Rb3 {[%emt 0:00:46]} 31. Rd2 {[%emt 0:00:06]} Re8 {[%emt 0:00:38]} 32. h4 {[%emt 0:00:27]} Ree3 {[%emt 0:00:08]} 33. Re1 {[%emt 0:00:13]} Rxe1 {[%emt 0:00:36]} 34. Kxe1 {[%emt 0:00:02]} Rxg3 {[%emt 0:00:02]} 35. Re2 {[%emt 0:00:02]} Rd3 {[%emt 0:00:19]} 36. Re8+ {[%emt 0:00:11]} Nf8 {[%emt 0:00:01]} 37. Rd8 {[%emt 0:00:25]} a4 {[%emt 0:00:29]} 38. Kf2 {[%emt 0:00:32]} 1-0

[Event "RUS-ch Men Rapid 2019"]
[Site "Sochi"]
[Date "2019.10.15"]
[Round "1.32"]
[White "Udovenko, Dmitry"]
[Black "Goryachkina, Aleksandra"]
[Result "0-1"]
[ECO "B13"]
[WhiteElo "1931"]
[BlackElo "2504"]
[Annotator "ChessBase"]
[PlyCount "62"]
[EventDate "2019.10.15"]
[EventType "swiss"]
[EventCountry "RUS"]
[SourceTitle "playchess.com"]
[Source "ChessBase"]
[SourceQuality "1"]
[TimeControl "900+10"]

1. e4 c6 2. d4 d5 3. exd5 cxd5 4. Bf4 Nc6 5. c3 Nf6 6. Bd3 Bg4 7. Qb3 Qd7 8. Nd2 e6 9. Ngf3 Bd6 10. Ne5 Qc7 11. Nxg4 Nxg4 12. Bxd6 Qxd6 13. Nf3 O-O 14. h3 Nf6 15. O-O Rab8 16. Rae1 Nd7 17. Qc2 h6 18. Qe2 Rfc8 19. Bb1 b5 20. Qd3 Nf8 21. Ne5 b4 22. f4 bxc3 23. bxc3 Ne7 24. Qf3 Nf5 25. g4 Ne7 26. f5 exf5 27. Bxf5 Nxf5 28. Qxf5 f6 29. Ng6 Nxg6 30. Qxg6 Qg3+ 31. Kh1 Rb2 0-1

[Event "RUS-ch Men Rapid 2019"]
[Site "Sochi"]
[Date "2019.10.15"]
[Round "2.2"]
[White "Bocharov, Dmitry"]
[Black "Kovalchuk, Alexey"]
[Result "0-1"]
[ECO "A13"]
[WhiteElo "2673"]
[BlackElo "2388"]
[Annotator "RC"]
[PlyCount "62"]
[EventDate "2019.10.15"]
[EventType "swiss"]
[EventCountry "RUS"]
[SourceTitle "playchess.com"]
[Source "ChessBase"]
[SourceQuality "1"]
[TimeControl "900+10"]

1. c4 {[%emt 0:00:00]} e6 {[%emt 0:00:17]} 2. Nf3 {[%emt 0:00:00]} d5 {[%emt 0:00:04]} 3. g3 {[%emt 0:00:19]} dxc4 {[%emt 0:00:38]} 4. Bg2 {[%emt 0:00:04]} c5 {[%emt 0:00:11]} 5. Ne5 {[%emt 0:00:46]} Nf6 {[%emt 0:00:55]} 6. Na3 {[%emt 0:00:16]} Be7 {[%emt 0:00:21]} 7. Naxc4 {[%emt 0:00:23]} O-O {[%emt 0:00:04]} 8. O-O {[%emt 0:00:03]} Nd5 {[%emt 0:00:10]} 9. d4 {[%emt 0:00:42]} f6 {[%emt 0:00:25]} 10. Nf3 {[%emt 0:00:11]} Nc6 {[%emt 0:01:22]} 11. dxc5 {[%emt 0:02:22]} Bxc5 {[%emt 0:00:03]} 12. a3 {[%emt 0:01:29]} b5 {[%emt 0:01:00]} 13. Ncd2 {[%emt 0:02:30]} Bb6 {[%emt 0:01:04]} 14. Nb3 {[%emt 0:00:18]} Bb7 {[%emt 0:01:13]} 15. e4 {[%emt 0:00:14]} Nc7 {[%emt 0:00:34]} 16. Qe2 {[%emt 0:01:02]} e5 {[%emt 0:01:56]} 17. Be3 {[%emt 0:00:10]} Bxe3 {[%emt 0:00:27]} 18. Qxe3 {[%emt 0:00:23]} Ne6 {[%emt 0:00:01]} 19. Rfd1 {[%emt 0:00:37]} Qe7 {[%emt 0:00:10]} 20. Bh3 {[%emt 0:00:28]} Rad8 {[%emt 0:00:40]} 21. Bxe6+ {[%emt 0:00:14]} Qxe6 {[%emt 0:00:01]} 22. Nc5 {[%emt 0:00:01]} Qe7 {[%emt 0:00:03]} 23. Qb3+ {[%emt 0:00:27]} Kh8 {[%emt 0:00:19]} 24. Qxb5 {[%emt 0:00:12]} Ba8 {[%emt 0:00:02]} 25. b4 {[%emt 0:00:56]} f5 {[%emt 0:00:24]} 26. Rxd8 {[%emt 0:00:20]} Rxd8 {[%emt 0:01:22]} 27. exf5 {[%emt 0:00:15]} e4 {[%emt 0:00:59]} 28. Nh4 {[%emt 0:00:40]} Nd4 {[%emt 0:00:09]} 29. Qc4 {[%emt 0:00:21]} e3 {[%emt 0:00:02]} 30. fxe3 {[%emt 0:03:01]} Qxe3+ {[%emt 0:00:12]} 31. Kf1 {[%emt 0:00:01]} Nf3 {[%emt 0:00:32]} 0-1

[Event "RUS-ch Men Rapid 2019"]
[Site "Sochi"]
[Date "2019.10.15"]
[Round "2.3"]
[White "Sadovsky, Artem"]
[Black "Tsydypov, Zhamsaran"]
[Result "1/2-1/2"]
[ECO "A05"]
[WhiteElo "2411"]
[BlackElo "2671"]
[Annotator "RC"]
[PlyCount "111"]
[EventDate "2019.10.15"]
[EventType "swiss"]
[EventCountry "RUS"]
[SourceTitle "playchess.com"]
[Source "ChessBase"]
[SourceQuality "1"]
[TimeControl "900+10"]

1. Nf3 {[%emt 0:00:00]} Nf6 {[%emt 0:00:16]} 2. g3 {[%emt 0:00:00]} g6 {[%emt 0:00:10]} 3. Bg2 {[%emt 0:00:03]} Bg7 {[%emt 0:00:01]} 4. O-O {[%emt 0:00:02]} O-O {[%emt 0:00:05]} 5. c4 {[%emt 0:00:07]} d6 {[%emt 0:00:04]} 6. Nc3 {[%emt 0:00:04]} Nc6 {[%emt 0:00:04]} 7. Rb1 {[%emt 0:00:09]} e5 {[%emt 0:02:05]} 8. d3 {[%emt 0:00:03]} a5 {[%emt 0:00:01]} 9. a3 {[%emt 0:00:02]} h6 {[%emt 0:00:07]} 10. b4 {[%emt 0:00:10]} axb4 {[%emt 0:00:07]} 11. axb4 {[%emt 0:00:01]} Be6 {[%emt 0:00:24]} 12. b5 {[%emt 0:00:22]} Ne7 {[%emt 0:00:01]} 13. Bb2 {[%emt 0:01:03]} c6 {[%emt 0:00:07]} 14. bxc6 {[%emt 0:01:47]} bxc6 {[%emt 0:00:02]} 15. c5 {[%emt 0:00:33]} dxc5 {[%emt 0:00:49]} 16. Nxe5 {[%emt 0:00:07]} Qc7 {[%emt 0:00:01]} 17. Nc4 {[%emt 0:01:19]} Rfd8 {[%emt 0:00:04]} 18. Qc1 {[%emt 0:01:22]} Bxc4 {[%emt 0:01:59]} 19. dxc4 {[%emt 0:00:02]} Nf5 {[%emt 0:00:04]} 20. e3 {[%emt 0:01:17]} Nd6 {[%emt 0:00:06]} 21. Ne2 {[%emt 0:02:12]} Ra4 {[%emt 0:00:05]} 22. Be5 {[%emt 0:00:08]} Nfe8 {[%emt 0:00:02]} 23. Bxg7 {[%emt 0:00:19]} Nxg7 {[%emt 0:00:02]} 24. Rd1 {[%emt 0:00:57]} Ne6 {[%emt 0:01:26]} 25. Nc3 {[%emt 0:02:48]} Rxc4 {[%emt 0:00:32]} 26. Qa3 {[%emt 0:00:21]} Nb5 {[%emt 0:00:44]} 27. Rxd8+ {[%emt 0:00:53]} Qxd8 {[%emt 0:00:03]} 28. Nxb5 {[%emt 0:00:06]} cxb5 {[%emt 0:00:02]} 29. Qa6 {[%emt 0:01:44]} Qd3 {[%emt 0:01:26]} 30. Ra1 {[%emt 0:00:12]} Ra4 {[%emt 0:00:14]} 31. Rxa4 {[%emt 0:00:27]} Qd1+ {[%emt 0:00:05]} 32. Bf1 {[%emt 0:00:01]} bxa4 {[%emt 0:00:01]} 33. Kg2 {[%emt 0:00:07]} Kg7 {[%emt 0:02:54]} 34. Bc4 {[%emt 0:00:12]} Ng5 {[%emt 0:00:32]} 35. Qb7 {[%emt 0:00:30]} Qg4 {[%emt 0:01:42]} 36. f4 {[%emt 0:00:15]} a3 {[%emt 0:00:35]} 37. Qd5 {[%emt 0:00:15]} a2 {[%emt 0:00:43]} 38. fxg5 {[%emt 0:00:19]} Qxc4 {[%emt 0:00:38]} 39. gxh6+ {[%emt 0:00:22]} Kxh6 {[%emt 0:00:26]} 40. Qxc4 {[%emt 0:00:04]} a1=Q {[%emt 0:00:03]} 41. Qxf7 {[%emt 0:00:38]} Qa8+ {[%emt 0:00:06]} 42. Qf3 {[%emt 0:00:13]} Qa2+ {[%emt 0:00:24]} 43. Kh3 {[%emt 0:00:11]} Qe6+ {[%emt 0:00:04]} 44. g4 {[%emt 0:00:08]} c4 {[%emt 0:00:03]} 45. Qf4+ {[%emt 0:00:02]} Kh7 {[%emt 0:00:05]} 46. Kg3 {[%emt 0:00:17]} Qe7 {[%emt 0:00:02]} 47. Qxc4 {[%emt 0:00:20]} Qxe3+ {[%emt 0:00:01]} 48. Kg2 {[%emt 0:00:04]} Qd2+ {[%emt 0:00:01]} 49. Kg1 {[%emt 0:00:11]} Qe3+ {[%emt 0:00:06]} 50. Kg2 {[%emt 0:00:06]} Qd2+ {[%emt 0:00:02]} 51. Kf3 {[%emt 0:00:21]} Qxh2 {[%emt 0:00:14]} 52. Qf7+ {[%emt 0:00:01]} Kh8 {[%emt 0:00:05]} 53. Qf6+ {[%emt 0:00:17]} Kh7 {[%emt 0:00:02]} 54. Qf7+ {[%emt 0:00:12]} Kh8 {[%emt 0:00:01]} 55. Qxg6 {[%emt 0:00:00]} Qf4+ {[%emt 0:00:01]} 56. Kxf4 {[%emt 0:00:01]} 1/2-1/2

[Event "RUS-ch Men Rapid 2019"]
[Site "Sochi"]
[Date "2019.10.15"]
[Round "2.10"]
[White "Moiseenko, Vadim"]
[Black "Dudin, Gleb"]
[Result "1-0"]
[ECO "B06"]
[WhiteElo "2595"]
[BlackElo "2314"]
[Annotator "ChessBase"]
[PlyCount "35"]
[EventDate "2019.10.15"]
[EventType "swiss"]
[EventCountry "RUS"]
[SourceTitle "playchess.com"]
[Source "ChessBase"]
[SourceQuality "1"]
[TimeControl "900+10"]

1. e4 {[%emt 0:00:00]} g6 {[%emt 0:00:00]} 2. f4 {[%emt 0:00:00]} Bg7 {[%emt 0:00:00]} 3. Nf3 {[%emt 0:00:00]} d5 {[%emt 0:02:47]} 4. Nc3 {[%emt 0:00:24]} dxe4 {[%emt 0:00:42]} 5. Nxe4 {[%emt 0:00:01]} b6 {[%emt 0:00:45]} 6. Bb5+ {[%emt 0:00:04]} c6 {[%emt 0:01:08]} 7. Bc4 {[%emt 0:00:02]} Nf6 {[%emt 0:01:12]} 8. Nxf6+ {[%emt 0:00:36]} exf6 {[%emt 0:01:03]} 9. Qe2+ {[%emt 0:00:05]} Qe7 {[%emt 0:00:39]} 10. Qxe7+ {[%emt 0:00:07]} Kxe7 {[%emt 0:00:02]} 11. b3 {[%emt 0:00:05]} f5 {[%emt 0:01:08]} 12. Ba3+ {[%emt 0:00:03]} c5 {[%emt 0:01:26]} 13. O-O-O {[%emt 0:00:02]} Be6 {[%emt 0:01:04]} 14. Rhe1 {[%emt 0:00:02]} Kd7 {[%emt 0:03:27]} 15. Bxe6+ {[%emt 0:00:03]} fxe6 {[%emt 0:00:03]} 16. d4 {[%emt 0:00:01]} c4 {[%emt 0:00:29]} 17. d5 {[%emt 0:00:04]} exd5 {[%emt 0:00:56]} 18. Re7+ {[%emt 0:00:02]} 1-0

[Event "RUS-ch Men Rapid 2019"]
[Site "Sochi"]
[Date "2019.10.15"]
[Round "2.11"]
[White "Gogolev, Artem"]
[Black "Lysyj, Igor"]
[Result "0-1"]
[ECO "E07"]
[WhiteElo "2339"]
[BlackElo "2588"]
[Annotator "ChessBase"]
[PlyCount "70"]
[EventDate "2019.10.15"]
[EventType "swiss"]
[EventCountry "RUS"]
[SourceTitle "playchess.com"]
[Source "ChessBase"]
[SourceQuality "1"]
[TimeControl "900+10"]

1. d4 {[%emt 0:00:00]} d5 {[%emt 0:00:01]} 2. c4 {[%emt 0:00:00]} e6 {[%emt 0:00:01]} 3. g3 {[%emt 0:00:00]} Nf6 {[%emt 0:00:40]} 4. Bg2 {[%emt 0:00:00]} Be7 {[%emt 0:00:02]} 5. Nf3 {[%emt 0:00:04]} O-O {[%emt 0:00:03]} 6. O-O {[%emt 0:00:03]} Nbd7 {[%emt 0:00:06]} 7. Nc3 {[%emt 0:01:25]} dxc4 {[%emt 0:00:05]} 8. e4 {[%emt 0:00:19]} b5 {[%emt 0:00:03]} 9. Nxb5 {[%emt 0:01:18]} Bb7 {[%emt 0:00:02]} 10. Nd2 {[%emt 0:00:51]} Nb6 {[%emt 0:00:40]} 11. e5 {[%emt 0:00:22]} Bxg2 {[%emt 0:00:10]} 12. exf6 {[%emt 0:00:26]} Bxf6 {[%emt 0:00:06]} 13. Kxg2 {[%emt 0:00:36]} Qd5+ {[%emt 0:00:01]} 14. Kg1 {[%emt 0:01:27]} Qxb5 {[%emt 0:00:04]} 15. Ne4 {[%emt 0:00:03]} Be7 {[%emt 0:00:09]} 16. a4 {[%emt 0:00:43]} Qc6 {[%emt 0:00:28]} 17. Qc2 {[%emt 0:00:22]} Nd5 {[%emt 0:00:38]} 18. Nc5 {[%emt 0:01:24]} Rab8 {[%emt 0:02:05]} 19. Rd1 {[%emt 0:02:09]} Bxc5 {[%emt 0:03:07]} 20. Qxc4 {[%emt 0:00:05]} Rb4 {[%emt 0:00:01]} 21. Qxc5 {[%emt 0:00:04]} Qxc5 {[%emt 0:00:01]} 22. dxc5 {[%emt 0:00:02]} Rfb8 {[%emt 0:00:18]} 23. Ra3 {[%emt 0:01:14]} Rc4 {[%emt 0:00:22]} 24. Rad3 {[%emt 0:01:29]} Rxa4 {[%emt 0:00:36]} 25. Be3 {[%emt 0:00:23]} Rxb2 {[%emt 0:00:51]} 26. c6 {[%emt 0:00:23]} h5 {[%emt 0:00:38]} 27. Rxd5 {[%emt 0:00:35]} exd5 {[%emt 0:00:03]} 28. Rxd5 Rc2 {[%emt 0:01:36]} 29. Rd8+ {[%emt 0:00:14]} Kh7 {[%emt 0:00:01]} 30. Rd7 {[%emt 0:00:01]} Rxc6 {[%emt 0:00:05]} 31. Rxf7 {[%emt 0:00:03]} a5 {[%emt 0:01:14]} 32. Bf4 {[%emt 0:00:09]} h4 {[%emt 0:01:37]} 33. Kg2 {[%emt 0:00:06]} hxg3 {[%emt 0:00:43]} 34. hxg3 {[%emt 0:00:13]} Kg6 {[%emt 0:00:44]} 35. Rd7 {[%emt 0:00:12]} Rxf4 {[%emt 0:00:13]} 0-1

[Event "RUS-ch Men Rapid 2019"]
[Site "Sochi"]
[Date "2019.10.15"]
[Round "2.12"]
[White "Yudin, Sergei"]
[Black "Yatzenko, Anton"]
[Result "1/2-1/2"]
[ECO "C50"]
[WhiteElo "2577"]
[BlackElo "2383"]
[Annotator "ChessBase"]
[PlyCount "72"]
[EventDate "2019.10.15"]
[EventType "swiss"]
[EventCountry "RUS"]
[SourceTitle "playchess.com"]
[Source "ChessBase"]
[SourceQuality "1"]
[TimeControl "900+10"]

1. e4 {[%emt 0:00:00]} e5 {[%emt 0:00:00]} 2. Nf3 {[%emt 0:00:00]} Nc6 {[%emt 0:00:00]} 3. Bc4 {[%emt 0:00:00]} Bc5 {[%emt 0:00:00]} 4. d3 {[%emt 0:00:02]} Nf6 {[%emt 0:00:00]} 5. O-O {[%emt 0:00:04]} d6 {[%emt 0:00:01]} 6. c3 {[%emt 0:00:04]} a6 {[%emt 0:00:01]} 7. a4 {[%emt 0:00:08]} Ba7 {[%emt 0:00:04]} 8. Nbd2 {[%emt 0:00:26]} h6 {[%emt 0:00:02]} 9. Re1 {[%emt 0:01:23]} O-O {[%emt 0:00:02]} 10. a5 {[%emt 0:00:18]} Be6 {[%emt 0:00:09]} 11. Qb3 {[%emt 0:00:07]} Qc8 {[%emt 0:00:08]} 12. Nf1 {[%emt 0:01:24]} Bxc4 {[%emt 0:00:01]} 13. dxc4 {[%emt 0:00:15]} Rb8 {[%emt 0:00:30]} 14. Qc2 {[%emt 0:00:18]} Ng4 {[%emt 0:00:20]} 15. Re2 {[%emt 0:00:35]} f5 {[%emt 0:00:15]} 16. exf5 {[%emt 0:00:40]} Qxf5 {[%emt 0:00:02]} 17. Qxf5 {[%emt 0:00:02]} Rxf5 {[%emt 0:00:01]} 18. h3 {[%emt 0:00:16]} Nxf2 {[%emt 0:01:22]} 19. Rxf2 {[%emt 0:00:02]} Bxf2+ {[%emt 0:00:04]} 20. Kxf2 {[%emt 0:00:02]} e4 {[%emt 0:00:45]} 21. Ng3 {[%emt 0:00:02]} Rxa5 {[%emt 0:00:01]} 22. Rxa5 {[%emt 0:00:01]} Nxa5 {[%emt 0:00:01]} 23. Nd2 {[%emt 0:00:11]} Re8 {[%emt 0:02:19]} 24. Ke3 {[%emt 0:02:32]} b5 {[%emt 0:00:01]} 25. b3 {[%emt 0:00:02]} bxc4 {[%emt 0:00:10]} 26. bxc4 {[%emt 0:00:05]} c6 {[%emt 0:00:34]} 27. Ba3 {[%emt 0:01:33]} d5 {[%emt 0:00:37]} 28. Bb4 {[%emt 0:01:38]} Nxc4+ {[%emt 0:00:03]} 29. Nxc4 {[%emt 0:00:01]} dxc4 {[%emt 0:00:01]} 30. Nxe4 {[%emt 0:00:02]} g5 {[%emt 0:03:30]} 31. Kd4 {[%emt 0:04:13]} Kg7 {[%emt 0:00:01]} 32. g3 {[%emt 0:00:32]} Kg6 {[%emt 0:00:10]} 33. Ba5 {[%emt 0:00:20]} h5 {[%emt 0:01:09]} 34. Bb4 {[%emt 0:01:39]} Re6 {[%emt 0:02:51]} 35. g4 {[%emt 0:00:33]} h4 {[%emt 0:00:52]} 36. Ba5 {[%emt 0:00:00]} Re7 {[%emt 0:00:56]} 1/2-1/2